Cogmind - Beta 15 *** ADVENTURER MODE // 2025.09.05 @ 23:32:52 Player: Class.IcaL Result: Destroyed by as-08610 with Assembled Blade Performance ------------- Evolutions (0) 0 Regions Visited (4) 800 Robots Destroyed (13) 65 Value Destroyed (242) 242 Prototype IDs (23) 460 Alien Tech Used (0) 0 Bonus (300) 300 TOTAL SCORE: 1867 Bonus ------- Aligned with FarCom 300 Cogmind --------- Core Integrity 0/250 Matter 273/300 Energy 98/100 System Corruption 4% Temperature Cool (0) Movement Core (300) Ox5 Location -9/Mines Parts ------- > --- POWER (1) -------- (None) > --- PROPULSION (2) --- (None) > --- UTILITY (2) ------ Small Storage Unit Medium Storage Unit > --- WEAPON (2) ------- Light Assault Rifle > --- INVENTORY (10) --- Ion Engine Reinforced Deuterium Engine Wheel Experimental Sensor Array Cloak of Protection Light Assault Rifle Peak State ------------ > --- POWER ------------ Light Ion Engine > --- PROPULSION ------- Compact Wheel > --- UTILITY ---------- Small Storage Unit Medium Storage Unit > --- WEAPON ----------- Assault Rifle Rocket Launcher > --- INVENTORY -------- Ion Engine Reinforced Deuterium Engine Wheel Compact Wheel Experimental Sensor Array Cloak of Protection Light Assault Rifle Light Assault Rifle [Rating: 9] Favorites ----------- Power Light Ion Engine Engine Light Ion Engine Propulsion Compact Wheel Wheel Compact Wheel Utility Small Storage Unit Storage Small Storage Unit Weapon Assault Rifle Energy Gun Small Laser Ballistic Gun Assault Rifle Launcher Rocket Launcher Build | -11 -10 -10 -10 -9 ------- Run | Yrd Mat Min Exi Min Slots Evolved . | . . . . . Power . | . . . . . Propulsion . | . . . . . Utility . | . . . . . Weapon . | . . . . . Parts Attached 11 | 4 3 1 1 2 Power 1 | . 1 . . . Engine 1 | . 1 . . . Core . | . . . . . Reactor . | . . . . . Propulsion 3 | 2 . . . 1 Treads . | . . . . . Leg . | . . . . . Wheel 3 | 2 . . . 1 Hover . | . . . . . Flight . | . . . . . Utility 2 | . 1 . 1 . Device . | . . . . . Storage 2 | . 1 . 1 . Processor . | . . . . . Hackware . | . . . . . Protection . | . . . . . Artifact . | . . . . . Weapon 5 | 2 1 1 . 1 Energy Gun 1 | 1 . . . . Energy Cannon . | . . . . . Ballistic Gun 3 | 1 1 . . 1 Ballistic Cannon . | . . . . . Launcher 1 | . . 1 . . Special Weapon . | . . . . . Impact Weapon . | . . . . . Slashing Weapon . | . . . . . Piercing Weapon . | . . . . . Special Melee Weapon . | . . . . . Unidentified Prototypes . | . . . . . Parts Lost 7 | . . 2 . 5 Power 1 | . . . . 1 Propulsion 3 | . . 1 . 2 Utility . | . . . . . Weapon 3 | . . 1 . 2 Highest Loss Streak 5 | . . 2 . 5 To Critical Strikes . | . . . . . Average Backups 5 | 2 1 3 7 7 Power 1 | . . . 1 2 Propulsion 1 | . . 2 2 1 Utility . | . . . 1 2 Weapon 1 | . 1 1 2 1 Tool/Special . | . . . . . Unused Backups 5 | . . . . 5 Power 2 | . . . . 2 Propulsion 1 | . . . . 1 Utility 2 | . . . . 2 Weapon . | . . . . . Tool/Special . | . . . . . Average Slot Usage (%) 79 | . 82 68 81 70 Engine 13 | . 12 14 14 12 Wheel 16 | . 28 14 14 14 Storage 21 | . 12 14 24 28 Energy Gun 2 | . 14 . . . Ballistic Gun 13 | . 14 14 14 7 Launcher 10 | . . 10 14 7 Peak Build Rating 9 | 4 6 7 9 9 Average Rating 7 | 1 5 5 7 7 On Entrance 5 | . 4 6 7 9 Naked Turns . | . . . . . Heaviest Build 24 | 2 11 14 24 24 Greatest Support 26 | 26 26 16 16 16 Greatest Overweight (x) 1 | . . . 1 1 Average Overweight (x) . | . . . . . Largest Inventory Capacity 10 | 5 8 8 10 10 Average Capacity 8 | 5 7 8 9 10 Most Carried 8 | 5 3 6 8 8 Average Carried 5 | 3 1 3 7 7 Final Capacity 10 | 5 8 8 10 10 Final Carried 8 | 3 3 6 8 6 Class Distribution -------------------- 100% | Mutant Dominant Class ---------------- Mutant | -10/Materials Mutant | -10/Mines Mutant | -10/Exiles Mutant | -9/Mines Resources | -11 -10 -10 -10 -9 ----------- Run | Yrd Mat Min Exi Min Matter Collected 332 | 231 84 17 . . Remotely . | . . . . . Salvage Created 356 | . 267 44 . 45 Parts 28 | . 22 6 . . Haulers Intercepted . | . . . . . Recyclers Shooed . | . . . . . Parts Field Recycled . | . . . . . Retrieved Matter . | . . . . . Parts Self-Destructed . | . . . . . Prevented . | . . . . . Kills | -11 -10 -10 -10 -9 ------- Run | Yrd Mat Min Exi Min Combat Hostiles Destroyed 19 | . 7 3 . 9 Guns 10 | . 7 3 . . AOE 9 | . . . . 9 Classes Destroyed 5 | . 4 . . 1 Worker 1 | . 1 . . . Watcher 2 | . 2 . . . Swarmer 6 | . 3 3 . . Grunt 4 | . 4 . . . Assembled 9 | . . . . 9 Best Kill Streak 9 | . 3 3 . 9 Combat Bots Only 9 | . 2 3 . 9 Max Kills in Single Turn 9 | . 1 1 . 9 Gunslinging . | . . . . . Exploded 9 | . . . . 9 Melee . | . . . . . Uniques/NPCs Destroyed . | . . . . . Combat | -11 -10 -10 -10 -9 -------- Run | Yrd Mat Min Exi Min Hostile Shots Fired 96 | . 34 16 . 46 Missed 19 | . 9 1 . 9 Hits 77 | . 25 15 . 37 Melee 8 | . . . . 8 Projectile 69 | . 25 15 . 29 Critical Strikes 2 | . . 1 . 1 Damage Taken 799 | . 212 81 . 506 Core 255 | . 48 37 . 170 Absorbed by Shields . | . . . . . Ignored by Resistances 241 | . 64 30 . 147 Core Remaining (%) 100 | 100 . . . . Volleys Fired 39 | . 29 5 . 5 Largest 2 | . 2 2 . 2 Hottest 60 | . 60 60 . 53 Shots Fired 68 | . 54 8 . 6 Gun 67 | . 54 8 . 5 Cannon . | . . . . . Launcher 1 | . . . . 1 Special . | . . . . . Kinetic 39 | . 29 5 . 5 Thermal 28 | . 25 3 . . Explosive 1 | . . . . 1 Electromagnetic . | . . . . . Robot Hit Streak 13 | . 13 5 . 3 Robot Miss Streak 2 | . 2 1 . 1 Penetration Max . | . . . . . Secondary Targets . | . . . . . Shots Hit Robots 49 | . 39 6 . 4 Core Hits 41 | . 18 3 . 20 Critical Kills 1 | . 1 . . . Critical Parts Destroyed . | . . . . . Critical Strikes 1 | . 1 . . . Destroy 1 | . 1 . . . Melee Attacks . | . . . . . Impact . | . . . . . Slashing . | . . . . . Piercing . | . . . . . Sneak Attacks . | . . . . . Combat Hostiles . | . . . . . Follow-up Attacks . | . . . . . Damage Inflicted 945 | . 405 74 . 466 Guns 519 | . 405 74 . 40 Cannons . | . . . . . Explosions 426 | . . . . 426 Melee . | . . . . . Ramming . | . . . . . Kinetic 288 | . 186 62 . 40 Thermal 231 | . 219 12 . . Explosive 426 | . . . . 426 Electromagnetic . | . . . . . Impact . | . . . . . Slashing . | . . . . . Piercing . | . . . . . Highest Corruption 4 | . . . . 4 Average Corruption 4 | . . . . 4 Corruption Purged . | . . . . . Corruption Blocked . | . . . . . Effects 1 | . . . . 1 Data Loss (minor) 1 | . . . . 1 Overload Shots . | . . . . . Overflow Damage 21 | . . . . 21 Projectiles . | . . . . . Explosions 21 | . . . . 21 Melee . | . . . . . Knockbacks . | . . . . . Impact . | . . . . . Kinetic . | . . . . . Secondary . | . . . . . Self-Inflicted Damage . | . . . . . Shots . | . . . . . Rammed . | . . . . . Targets Rammed . | . . . . . Kicked . | . . . . . Crushed . | . . . . . Highest Temperature 72 | . 72 . . 17 Average Temperature 30 | . 31 . . 12 Received Heat Transfer 186 | . 126 . . 60 Siege Activations . | . . . . . Martial Activations . | . . . . . Shielding Activations . | . . . . . Robots Disrupted . | . . . . . Combat Hostiles . | . . . . . Robots Corrupted . | . . . . . Combat Hostiles . | . . . . . Parts Fried . | . . . . . Impact Corruptions . | . . . . . Robots Melted . | . . . . . Combat Hostiles . | . . . . . Parts Melted . | . . . . . Heat Transferred 525 | . 500 25 . . Parts Sabotaged . | . . . . . Parts Stolen . | . . . . . Parts Stripped . | . . . . . Power Chain Reactions . | . . . . . Alert | -11 -10 -10 -10 -9 ------- Run | Yrd Mat Min Exi Min Maximum Alert Level . | . . . . . Low Security (%) 100 | 100 100 100 . 100 Level 1 . | . . . . . Level 2 . | . . . . . Level 3 . | . . . . . Level 4 . | . . . . . Level 5 . | . . . . . High Security . | . . . . . Max Security . | . . . . . Peak Influence 86 | . 86 67 . 3 Initial 17 | . . 17 . . Average 28 | . 46 16 . . Influence Increases 315 | . 242 70 . 3 Destroy 0b10 Robot/C 200 | . 140 60 . . Destroy 0b10 Robot/NC 15 | . 15 . . . Destroy Leader 34 | . 24 10 . . Successful Hack 33 | . 33 . . . Destroy Structure 3 | . . . . 3 Lose Combat Pursuer 30 | . 30 . . . Influence Decreases 315 | . 190 122 . 3 Entered New Map 35 | . . 35 . . Time Decay 260 | . 190 67 . 3 Lost Part 20 | . . 20 . . Squads Dispatched 1 | . 1 . . . Investigation 1 | . 1 . . . Extermination . | . . . . . Reinforcement . | . . . . . Assault . | . . . . . Garrison . | . . . . . Intercept . | . . . . . Searches Triggered . | . . . . . Construction Impeded . | . . . . . Haulers Reinforced . | . . . . . Active Scanning Responses . | . . . . . Cargo Convoy Interrupts . | . . . . . Stealth | -11 -10 -10 -10 -9 --------- Run | Yrd Mat Min Exi Min Distress Signals . | . . . . . Communications Jammed . | . . . . . Distress Signals . | . . . . . Times Spotted 35 | . 12 3 . 20 Peak Tracking Total 20 | . 4 3 . 20 Tactical Retreats 2 | . 1 . . 1 Traps | -11 -10 -10 -10 -9 ------- Run | Yrd Mat Min Exi Min Traps Triggered . | . . . . . Indirectly . | . . . . . Trap Hack Attempts . | . . . . . Triggered . | . . . . . Disarmed . | . . . . . Reprogrammed . | . . . . . Reused . | . . . . . Traps Extracted . | . . . . . Installed . | . . . . . Triggered . | . . . . . Machines | -11 -10 -10 -10 -9 ---------- Run | Yrd Mat Min Exi Min Machines Disabled . | . . . . . Max in Single Turn . | . . . . . Machines Repaired . | . . . . . Machines Dismantled . | . . . . . Machines Sabotaged . | . . . . . Overloaded Fab Kills . | . . . . . Hacking | -11 -10 -10 -10 -9 --------- Run | Yrd Mat Min Exi Min Machines Accessed 10 | . 6 . 4 . Terminals 6 | . 6 . . . Fabricators . | . . . . . Repair Stations . | . . . . . Recycling Units . | . . . . . Scanalyzers . | . . . . . Garrison Access . | . . . . . Total Hacks 46 | . 19 . 27 . Successful 31 | . 4 . 27 . Failed 15 | . 15 . . . Catastrophic 3 | . 3 . . . Database Lockouts . | . . . . . Manual 14 | . 10 . 4 . Terminals 19 | . 19 . . . Fabricators . | . . . . . Repair Stations . | . . . . . Recycling Units . | . . . . . Scanalyzers . | . . . . . Garrison Access . | . . . . . Terminal Hacks 31 | . 4 . 27 . Record 26 | . . . 26 . Robot Analysis 2 | . 2 . . . Level Access Points 1 | . 1 . . . Branch Access Points 1 | . 1 . . . Proto ID Catalog 1 | . . . 1 . Fabricator Hacks . | . . . . . Repair Station Hacks . | . . . . . Recycling Unit Hacks . | . . . . . Scanalyzer . | . . . . . Garrison Access Hacks . | . . . . . Unauthorized Hacks . | . . . . . Terminals . | . . . . . Fabricators . | . . . . . Repair Stations . | . . . . . Recycling Units . | . . . . . Scanalyzers . | . . . . . Garrison Access . | . . . . . Data Cores Recovered . | . . . . . Used . | . . . . . Hacking Detections 6 | . 6 . . . Full Trace Events 3 | . 3 . . . Feedback Events . | . . . . . Feedback Blocked . | . . . . . Robot Schematics Acquired . | . . . . . Robots Built . | . . . . . Authchips . | . . . . . Time . | . . . . . Total Robot Build Rating . | . . . . . Part Schematics Acquired . | . . . . . Parts Built . | . . . . . Authchips . | . . . . . Time . | . . . . . Total Part Build Rating . | . . . . . Parts Repaired . | . . . . . Time . | . . . . . Parts Recycled . | . . . . . Recycled Matter . | . . . . . Retrieved Matter . | . . . . . Retrieved Components . | . . . . . Parts Scanalyzed . | . . . . . Part Schematics Acquired . | . . . . . Parts Damaged . | . . . . . Bothacking | -11 -10 -10 -10 -9 ------------ Run | Yrd Mat Min Exi Min Used RIF Installer . | . . . . . Robots Hacked . | . . . . . Non-combat . | . . . . . Combat . | . . . . . Robot Hacks Applied . | . . . . . Relay Couplers Released . | . . . . . Fabnet Peak Effective % . | . . . . . Robots Rewired . | . . . . . Allies Hacked . | . . . . . Hacks Repelled . | . . . . . Allies | -11 -10 -10 -10 -9 -------- Run | Yrd Mat Min Exi Min Total Allies . | . . . . . Largest Group . | . . . . . Highest-Rated Group . | . . . . . Highest-Rated Ally . | . . . . . Total Orders . | . . . . . Ally Attacks . | . . . . . Total Damage . | . . . . . Kills . | . . . . . Allies Corrupted . | . . . . . Allies Melted . | . . . . . Intel | -11 -10 -10 -10 -9 ------- Run | Yrd Mat Min Exi Min Active Infowar (turns) . | . . . . . Robot Analysis Total 2 | . 2 . . . Derelict Logs Recovered 2 | . . 1 . 1 Drone Launches . | . . . . . Drone Recoveries . | . . . . . Exploration | -11 -10 -10 -10 -9 ------------- Run | Yrd Mat Min Exi Min Turns Passed 2045 | 38 390 278 1257 82 Spaces Moved 1831 | 45 339 257 1128 62 Core 30 | 30 . . . . Treads . | . . . . . Legs . | . . . . . Wheels 1801 | 15 339 257 1128 62 Hover . | . . . . . Flight . | . . . . . Fastest Speed 50 | 50 90 100 100 100 Average Speed 104 | 63 90 100 111 112 Slowest Speed 115 | 90 90 100 115 115 Overloaded Moves . | . . . . . Propulsion Burnouts . | . . . . . Robots Hopped . | . . . . . Potential Cave-ins . | . . . . . Cave-ins Triggered . | . . . . . Exploration Rate (%) 47 | 3 47 82 93 10 Regions Visited 4 Branch Regions 3 Pre-discovered Areas 1 | . . 1 . . Known Exits Taken 1 | . 1 . . . Unknown Exits Taken 3 | 1 . 1 1 . Scrap Searched 1 | . . 1 . . Spaces Dug . | . . . . . Terrain Destroyed 3 | . . . . 3 Melee . | . . . . . Projectile . | . . . . . AOE 3 | . . . . 3 Terrain Rammed . | . . . . . Walls Destroyed . | . . . . . Machines Disabled . | . . . . . Actions | -11 -10 -10 -10 -9 --------- Run | Yrd Mat Min Exi Min Total 1897 | 53 373 270 1132 69 Wait 6 | . 1 4 1 . Move 1827 | 44 338 256 1127 62 Hop . | . . . . . Pick Up 14 | 5 2 4 3 . Fast Attach 2 | 2 . . . . Attach 8 | 2 2 1 1 2 Detach . | . . . . . Swap 1 | . 1 . . . Drop . | . . . . . Fire 39 | . 29 5 . 5 Melee . | . . . . . Ram . | . . . . . Kick . | . . . . . Crush . | . . . . . Escape Stasis . | . . . . . Rewire . | . . . . . Trap . | . . . . . Miscellaneous . | . . . . . Route ------- -11/Scrapyard -10/Materials (discovered 5 exits: *Mat x3 / *Min x2) -10/Mines (discovered 2 exits: *Exi / [*Sub]) -10/Exiles (discovered 2 exits: [*Min x2]) -9/Mines History --------- Turn | Location | Event 15 | -11/Scrapyard | Discovered new exit (range 15) 39 | -11/Scrapyard | Entered Materials 39 | -10/Materials | Discovered new exit (range 14) 78 | -10/Materials | Identified exit to Materials 106 | -10/Materials | Discovered new exit (range 7) 310 | -10/Materials | Build established: Mutant 357 | -10/Materials | Identified exit to Mines 429 | -10/Materials | Entered Mines 447 | -10/Mines | Learned location of Storage (-9) 493 | -10/Mines | Received a Rocket Launcher from a helpful Derelict 670 | -10/Mines | Discovered new exit (range 9) 692 | -10/Mines | Found a damaged Exp. Sensor Array with a note attached 694 | -10/Mines | Found Prototype Device 701 | -10/Mines | Deemed a non-threat by the Exiles lab entrance 702 | -10/Mines | Discovered new exit (range 5) 707 | -10/Mines | Entered Exiles 733 | -10/Exiles | Met 8R-AWN 756 | -10/Exiles | Met EX-HEX 795 | -10/Exiles | Met EX-DEC 834 | -10/Exiles | Visited The Gauntlet 1035 | -10/Exiles | Discovered new exit (range 10) 1124 | -10/Exiles | Met EX-BIN 1142 | -10/Exiles | Aligned with FarCom system 1143 | -10/Exiles | Given EX-Vault access code 1481 | -10/Exiles | Discovered new exit (range 15) 1822 | -10/Exiles | Opened EX-Vault 1829 | -10/Exiles | Found Cloak of Protection 1870 | -10/Exiles | Exiles lab attacked by MAIN.C 1964 | -10/Exiles | Left Exiles lab with Cloak of Protection 1964 | -10/Exiles | Entered Mines 1994 | -9/Mines | Assembled infested the area 1999 | -9/Mines | Assisted by a Guerilla fighting off Assembled 2004 | -9/Mines | Core integrity fell below 50% 2022 | -9/Mines | Destroyed 9 combat bots 2024 | -9/Mines | Core integrity fell below 20% 2046 | -9/Mines | Destroyed by as-08610 with Assembled Blade Last Messages --------------- Assault Rifle destroyed. HV Slug penetrates as-66869. as-66869 knocked back. HV Slug penetrates Wall. HV Slug penetrates as-66869. as-66869 suffers critical hit (Destroy). as-66869 destroyed. 5L-KAT destroyed. HV Slug penetrates as-70753. as-70753 suffers critical hit (Destroy). as-70753 destroyed. as-76197 suffers critical hit (Destroy). as-74811 destroyed. PZ-MHD(h) Bore Cannon severed. PZ-MHD(h) destroyed. Lgt. Ion Engine destroyed. System corrupted by crushing effect (+4). Knocked back. System corrupted: Component data lost. Com. Wheel destroyed. Map ----- +----------------------------------------------------+ | ?????????????????????????????????????????? | | ?????????????????????????????????????????? | | ?????????????????????????????????????????? | | ?????????????????????????????????????????? | | ?????????????????????????????????????????? | | ?????????????????????????????????????????? | | ?????????????????????????????????????????? | | ?????????????????????????????????????????? | | ?????????????????????????????????????????? | | ?????????????????????????????????????????? | | ?????????????????????????????????????????? | | ?????????????????????????????????????????? | | ?????????????????????????????????????????? | | ?????????????????????????????????????????? | | ?????????????????????????????????????????? | | ?????????????????????????????????????????? | | ?????????????????????????????????????????? | | ?????????????????????????????????????????? | | ?????????????????????????????????????????? | | ?????????????????????????????????????????? | | ?????????????????????????????????????????? | | ?????????????????????????????????????????? | | ???????????????????????####??????????????? | | ?????????????????????### ##?????????????? | | ????????????????????## #?????????????? | | ????????????????##### a@ #?????????????? | | ????????????????# a a #?????????????? | | ????????????????#a### #?????????????? | | ????????????????# #?# ##?????????????? | | ????????????????# #?## ##??????????????? | | ????????????????# #??#####???????????????? | | ????????????????# #??????????????????????? | | ????????????????# #??????????????????????? | | ????????????????# #??????????????????????? | | ###?????????????# #??????????????????????? | | "%%############## #??????????????????????? | | % %%! #??????????????????????? | | !%]% #??????????????????????? | | ##!##############??????????????????????? | | ?###???????????????????????????????????? | | ????????????????????????????????????????? | | ?????????????????????????????????????????? | | ?????????????????????????????????????????? | | ?????????????????????????????????????????? | | ?????????????????????????????????????????? | | ?????????????????????????????????????????? | | ?????????????????????????????????????????? | | ?????????????????????????????????????????? | | ?????????????????????????????????????????? | | ?????????????????????????????????????????? | +----------------------------------------------------+ Best States ------------- Heat Dissipation 25 Energy Generation 10 Energy Capacity 125 Matter Stores 300 Matter Capacity 300 Sight Range 16 Terrain Scan Density 10 Resistance: KI 20 Resistance: TH 20 Resistance: EX 20 Resistance: EM 20 Resistance: I 20 Resistance: S 20 Resistance: P 20 Evasion (%) 50 Offensive Hacking 10 Item Schematics ----------------- None Robot Schematics ------------------ None Fabricated ------------ Nothing Repaired ---------- Nothing Alien Tech Used ----------------- None Achievements -------------- Hunted Quick And Dirty Challenges ------------ None Game ------ Seed ArchitectCombatChainsword Manual? 0 Play Time 00:32:33 Cumulative 13.7 hours Start 2025.09.05 @ 22:56:27 End 2025.09.05 @ 23:32:52 Sessions 1 Manual Loads 0 Difficulty Adventurer Special Mode None Game No. 13 Rogue 4 Adventurer 9 Explorer 0 Win Type - Total 0 Types 0/0/0/0/0/0/0/0/0/0 Lore% 12 Gallery% 14 Achievement% 16 Wizard Run 0 Options --------- Layout 1 ASCII 0 Keyboard 0 Movement Numpad Keybinds 0 Fullscreen 0 Font 20/Terminus Map View 50x35 Zoom Use 0% Tactical HUD 0 Map Filters NONE Filters NONE Steam 1 RUN: 78158b2b-7c38-4dae-941a-b3c39e1f9cb3